fUSD/lending_fUSD_20260304
["ID","MTS","AMOUNT","RATE_DAILY","PERIOD"]
[407639980,1772595038554,-151.0,0.00011793,2]
[407639982,1772595038563,-151.0,0.00011793,2]
[407639985,1772595038573,-151.0,0.00011793,2]
[407639987,1772595038582,-151.0,0.00011793,2]
[407639989,1772595038592,-151.0,0.00011793,2]
[407639991,1772595038601,-153.38423145,0.00011793,2]
[407639992,1772595038610,-500.0,0.00011793,2]
[407639995,1772595038623,-500.0,0.00011793,2]
[407639996,1772595038633,-500.0,0.00011793,2]
[407639998,1772595038642,-500.0,0.00011793,2]
[407640000,1772595038651,-500.0,0.00011793,2]
[407640002,1772595038661,-500.0,0.00011793,2]
[407640003,1772595038670,-500.0,0.00011793,2]
[407640005,1772595038679,-500.0,0.00011793,2]
[407640007,1772595038689,-500.0,0.00011793,2]
[407640009,1772595038698,-500.0,0.00011793,2]
[407640011,1772595038707,-500.0,0.00011793,2]
[407640012,1772595038716,-500.0,0.00011793,2]
[407640014,1772595038726,-500.0,0.00011793,2]
[407640016,1772595038735,-500.0,0.00011793,2]
[407640018,1772595038745,-500.0,0.00011793,2]
[407640019,1772595038754,-500.0,0.00011793,2]
[407640021,1772595038764,-500.0,0.00011793,2]
[407640023,1772595038773,-500.0,0.00011793,2]
[407640025,1772595038782,-500.0,0.00011793,2]
[407640026,1772595038791,-500.0,0.00011793,2]
[407640028,1772595038801,-500.0,0.00011793,2]
[407640030,1772595038810,-518.69824551,0.00011793,2]
[407640032,1772595038824,-151.0,0.00011793,2]
[407640034,1772595038833,-151.0,0.00011793,2]
[407640036,1772595038843,-151.0,0.00011793,2]
[407640037,1772595038852,-151.0,0.00011793,2]
[407640039,1772595038862,-151.0,0.00011793,2]
[407640041,1772595038871,-151.0,0.00011793,2]
[407640043,1772595038880,-151.0,0.00011793,2]
[407640045,1772595038889,-151.0,0.00011793,2]
[407640046,1772595038899,-151.0,0.00011793,2]
[407640048,1772595038908,-151.0,0.00011793,2]
[407640050,1772595038918,-151.0,0.00011793,2]
[407640052,1772595038928,-151.0,0.00011793,2]
[407640054,1772595038937,-444.3243859,0.00011798,2]
[407640055,1772595038947,-1513.24968459,0.00011799,2]
[407640057,1772595038956,-249.48874237,0.00011799,2]
[407640059,1772595038966,-196.29458997,0.000118,2]
[407640061,1772595038975,-2500.0,0.000118,4]
[407640063,1772595038985,-151.0,0.00011848,2]
[407640064,1772595038994,-175.789,0.00011863,2]
[407640066,1772595039005,-737.598,0.00011863,2]
[407640068,1772595039018,-1449.1825,0.00011863,2]
[407640070,1772595039027,-1336.11,0.00011893,2]
[407640072,1772595039037,-81406.76878943,0.00011899,2]
[407640074,1772595039046,-151.0,0.000119,2]
[407640075,1772595039056,-151.0,0.000119,2]
[407640077,1772595039065,-151.0,0.000119,2]
[407640079,1772595039075,-3300.0,0.000119,4]
[407640081,1772595039084,-151.0,0.000119,2]
[407640083,1772595039093,-152.451578,0.000119,2]
[407640084,1772595039103,-151.0,0.000119,2]
[407640086,1772595039112,-153.064848,0.000119,2]
[407640088,1772595039121,-151.0,0.000119,2]
[407640090,1772595039131,-151.0,0.000119,2]
[407640092,1772595039140,-151.0,0.000119,2]
[407640093,1772595039150,-151.0,0.000119,2]
[407640095,1772595039159,-151.0,0.00011903,2]
[407640097,1772595039168,-309.95184737,0.00011932,2]
[407640099,1772595039178,-151.0,0.00011958,2]
[407640101,1772595039188,-1000.0,0.00011987,2]
[407640103,1772595039197,-253.23278642,0.00012,2]
[407640104,1772595039209,-563.76949638,0.00012,2]
[407640106,1772595039219,-544.75084473,0.00012,2]
[407640108,1772595039228,-151.0,0.00012013,2]
[407640110,1772595039237,-151.0,0.00012068,2]
[407640112,1772595039246,-500.0,0.00012099,2]
[407640113,1772595039256,-2500.0,0.00012099,2]
[407640115,1772595039265,-151.0,0.00012123,2]
[407640117,1772595039275,-151.0,0.00012146,2]
[407640119,1772595039284,-721.12765535,0.00012146,2]
[407640121,1772595039294,-2500.0,0.00012146,2]
[407640122,1772595039303,-500.0,0.00012146,2]
[407640124,1772595039312,-1982.66141683,0.00012146,2]
[407640126,1772595039322,-500.0,0.00012146,2]
[407640127,1772595039331,-500.0,0.00012146,2]
[407640128,1772595039344,-500.0,0.00012146,2]
[407640129,1772595039353,-500.0,0.00012146,2]
[407640130,1772595039363,-1000.0,0.00012146,2]
[407640131,1772595039373,-500.0,0.00012146,2]
[407640132,1772595039383,-1000.0,0.00012146,2]
[407640133,1772595039393,-500.0,0.00012146,2]
[407640134,1772595039404,-1000.0,0.00012146,2]
[407640135,1772595039416,-500.0,0.00012146,2]
[407640136,1772595039425,-1000.0,0.00012146,2]
[407640137,1772595039434,-174.61919141,0.00012146,2]
[407640138,1772595039444,-1000.0,0.00012146,2]
[407640139,1772595039453,-500.0,0.00012146,2]
[407640140,1772595039463,-500.0,0.00012146,2]
[407640141,1772595039472,-578.20924308,0.00012146,2]
[407640142,1772595039481,-500.0,0.00012146,2]
[407640143,1772595039490,-1000.0,0.00012146,2]
[407640144,1772595039501,-1000.0,0.00012146,2]
[407640145,1772595039512,-1000.0,0.00012146,2]
[407640146,1772595039521,-1000.0,0.00012146,2]
[407640147,1772595039530,-1000.0,0.00012146,2]
[407640148,1772595039540,-693.3919763,0.00012146,2]
[407640149,1772595039549,-151.0,0.00012146,2]
[407640150,1772595039559,-235.75327194,0.00012146,2]
[407640151,1772595039568,-667.70759216,0.00012146,2]
[407640152,1772595039578,-269.917619,0.00012146,2]
[407640153,1772595039587,-3320.50943271,0.00012149,2]
[407640154,1772595039613,-36.43056729,0.00012149,2]
[407640155,1772595039624,-265.95483368,0.00012167,2]
[407640158,1772595040240,-1070.15516632,0.00012167,2]
[407640159,1772595040250,-151.0,0.00012178,2]
[407640160,1772595040260,-350.0,0.00012187,2]
[407640161,1772595040269,-719.04747942,0.00012201,2]
[407640162,1772595040278,-151.0,0.00012201,2]
[407640163,1772595040287,-151.0,0.00012233,2]
[407640164,1772595040297,-745.65223616,0.00012256,2]
[407640165,1772595040306,-151.0,0.00012256,2]
[407640166,1772595040315,-350.0,0.00012266,2]
[407640167,1772595040324,-244.07747426,0.00012288,2]
[407640168,1772595040333,-386.0,0.00012301,2]
[407640169,1772595040346,-773.2413689,0.00012311,2]
[407640170,1772595040355,-151.0,0.00012311,2]
[407640171,1772595040364,-350.0,0.00012328,2]
[407640172,1772595040372,-350.0,0.00012333,2]
[407640173,1772595040383,-200.0,0.00012341,2]
[407640174,1772595040391,-500.0,0.00012355,2]
[407640175,1772595040400,-150.0,0.00012355,2]
[407640176,1772595040410,-500.0,0.00012355,2]
[407640177,1772595040420,-150.0,0.00012355,2]
[407640178,1772595040430,-500.0,0.00012355,2]
[407640179,1772595040439,-167.28900627,0.00012355,2]
[407640180,1772595040448,-208.47223315,0.00012355,2]
[407640181,1772595040457,-150.0,0.00012355,2]
[407640182,1772595040467,-500.0,0.00012355,2]
[407640183,1772595040478,-500.0,0.00012355,2]
[407640184,1772595040487,-150.0,0.00012355,2]
[407640185,1772595040496,-150.0,0.00012355,2]
[407640186,1772595040506,-150.0,0.00012355,2]
[407640187,1772595040515,-150.0,0.00012355,2]
[407640188,1772595040524,-500.0,0.00012355,2]
[407640189,1772595040533,-500.0,0.00012355,2]
[407640190,1772595040765,-150.0,0.00012355,2]
[407640191,1772595040775,-150.0,0.00012355,2]
[407640192,1772595040784,-150.0,0.00012355,2]
[407640193,1772595040794,-801.85129955,0.00012366,2]
[407640194,1772595040803,-151.0,0.00012366,2]
[407640195,1772595040813,-500.0,0.0001241,2]
[407640196,1772595040823,-188.75555333,0.0001241,2]
[407640197,1772595040832,-648.15233432,0.0001241,2]
[407640198,1772595040842,-150.0,0.0001241,2]
[407640199,1772595040851,-500.0,0.0001241,2]
[407640200,1772595040860,-150.0,0.0001241,2]
[407640201,1772595040869,-279.86740429,0.0001241,2]
[407640202,1772595040881,-220.13259571,0.0001241,2]
[407640203,1772595040891,-500.0,0.0001241,2]
[407640204,1772595040901,-253.12775827,0.0001241,2]
[407640205,1772595040909,-201.41861585,0.0001241,2]
[407640206,1772595040918,-150.0,0.0001241,2]
[407640207,1772595040926,-500.0,0.0001241,2]
[407640208,1772595040935,-500.0,0.0001241,2]
[407640209,1772595040944,-202.61176714,0.0001241,2]
[407640210,1772595040952,-831.51979763,0.00012421,2]
[407640211,1772595040960,-151.0,0.00012421,2]
[407640212,1772595040969,-1336.11,0.00012441,2]
[407640213,1772595040978,-500.0,0.00012465,2]
[407640214,1772595040985,-248.5745741,0.00012465,2]
[407640215,1772595040992,-500.0,0.00012465,2]
[407640216,1772595041000,-150.0,0.00012465,2]
[407640217,1772595041011,-353.26020711,0.00012465,2]
[407640218,1772595041020,-617.48024749,0.00012465,2]
[407640219,1772595041027,-170.29192802,0.00012465,2]
[407640220,1772595041034,-515.36924383,0.00012465,2]
[407640221,1772595041046,-501.74148899,0.00012465,2]
[407640222,1772595041054,-435.75902654,0.00012476,2]
[407640224,1772595041217,-426.5270036,0.00012476,2]
[407640225,1772595041227,-151.0,0.00012476,2]
[407640226,1772595041237,-1513.24968459,0.00012477,2]
[407640227,1772595041246,-1000.0,0.00012501,2]
[407640228,1772595041256,-500.0,0.00012519,2]
[407640229,1772595041266,-257.29323251,0.00012519,2]
[407640230,1772595041276,-2263.99922433,0.00012522,2]
[407640231,1772595041286,-894.19061326,0.00012531,2]
[407640232,1772595041296,-151.0,0.00012531,2]
[407640233,1772595041306,-501.49196674,0.00012574,2]
[407640234,1772595041315,-927.27566595,0.00012586,2]
[407640235,1772595041325,-151.0,0.00012586,2]
[407640236,1772595041335,-201.525205,0.00012586,2]
[407640237,1772595041349,-8.66619875,0.00012597,2]
[407640238,1772595041360,-8943.78386462,0.00012597,2]
[407640239,1772595041372,-2653.43213473,0.00012597,2]
[407640240,1772595041386,-1191.3699696,0.00012597,2]
[407640241,1772595041395,-351.852022,0.00012597,2]
[407640242,1772595041405,-151.0,0.00012597,2]
[407640243,1772595041416,-151.0,0.00012597,2]
[407640244,1772595041425,-217.102714,0.00012597,2]
[407640245,1772595041435,-151.0,0.00012597,2]
[407640246,1772595041444,-158.528615,0.00012597,2]
[407640247,1772595041454,-151.0,0.00012597,2]
[407640248,1772595041464,-151.0,0.00012597,2]
[407640249,1772595041474,-151.0,0.00012597,2]
[407640250,1772595041484,-3229.1554533,0.00012597,2]
[407640251,1772595041494,-192.0,0.00012601,3]
[407640252,1772595041504,-154.0,0.00012601,3]
[407640253,1772595041514,-24.10775289,0.00012601,2]
[407640254,1772595041703,-525.99761691,0.00012601,2]
[407640255,1772595041712,-200.0,0.00012601,2]
[407640256,1772595041723,-200.0,0.00012601,2]
[407640257,1772595041732,-200.0,0.00012601,2]
[407640258,1772595041741,-350.0,0.0001261,2]
[407640259,1772595041751,-961.58486559,0.00012641,2]
[407640260,1772595041762,-151.0,0.00012641,2]
[407640261,1772595041771,-9836.0,0.00012668,2]
[407640262,1772595041781,-249.48874237,0.00012671,2]
[407640263,1772595041791,-181.08010149,0.00012694,2]
[407640264,1772595041803,-244.476143,0.00012694,2]
[407640265,1772595041813,-326.99524826,0.00012694,2]
[407640266,1772595041823,-997.16350561,0.00012696,2]
[407640267,1772595041834,-151.0,0.00012696,2]
[407640268,1772595041843,-2005.0,0.000127,2]
[407640269,1772595041853,-151.0,0.00012701,2]
[407640270,1772595041863,-200.0,0.00012701,2]
[407640271,1772595041873,-200.0,0.00012701,2]
[407640272,1772595041882,-1336.11,0.00012715,2]
[407640273,1772595041892,-200.0,0.00012727,2]
[407640274,1772595041902,-200.0,0.00012727,2]
[407640275,1772595041911,-274.00152663,0.00012751,2]
[407640276,1772595041921,-272.94764699,0.00012773,2]
[407640277,1772595041932,-3679.94,0.00012787,2]
[407640278,1772595041941,-200.0,0.00012828,2]
[407640279,1772595041951,-200.0,0.00012828,2]
[407640280,1772595041961,-200.0,0.00012854,2]
[407640281,1772595041970,-200.0,0.00012854,2]
[407640282,1772595041979,-168.0,0.00012879,2]
[407640283,1772595041988,-202.33705634,0.00012889,2]
[407640284,1772595041997,-402.0,0.000129,2]
[407640285,1772595042008,-168.0,0.00012929,2]
[407640286,1772595042017,-200.0,0.00012956,2]
[407640287,1772595042026,-200.0,0.00012956,2]
[407640288,1772595042036,-450.3,0.00012962,2]
[407640289,1772595042045,-352.17823064,0.0001297,2]
[407640290,1772595042055,-200.0,0.00012983,2]
[407640291,1772595042064,-200.0,0.00012983,2]
[407640292,1772595042073,-1336.11,0.00012989,2]
[407640293,1772595042084,-980.0,0.00013,2]
[407640294,1772595042093,-2000.0,0.00013,2]
[407640295,1772595042103,-450.3,0.0001304,2]
[407640296,1772595042112,-200.0,0.00013086,2]
[407640297,1772595042121,-200.0,0.00013086,2]
[407640298,1772595042131,-168.0,0.0001311,2]
[407640299,1772595042140,-200.0,0.00013113,2]
[407640300,1772595042149,-200.0,0.00013113,2]
[407640301,1772595042159,-166.66,0.00013117,2]
[407640302,1772595042169,-450.3,0.00013118,2]
[407640303,1772595042178,-155.0,0.00013123,2]
[407640304,1772595042191,-168.0,0.00013133,2]
[407640305,1772595042200,-1513.24968459,0.00013155,2]
[407640306,1772595042209,-186.71,0.00013166,2]
[407640307,1772595042219,-64.09735946,0.00013196,2]
[407640311,1772595043263,-344.0,0.00013196,2]
[407640312,1772595043371,-42.20264054,0.00013196,2]
[407640313,1772595043381,-2000.0,0.000132,2]
[407640314,1772595043391,-200.0,0.00013217,2]
[407640315,1772595043401,-200.0,0.00013217,2]
[407640316,1772595043412,-168.0,0.00013218,2]
[407640317,1772595043422,-637.69425221,0.0001323,2]
[407640319,1772595046122,-550.1053698,0.00012787,2]
[407640320,1772595046132,-550.1053698,0.0001323,2]
[407640321,1772595046142,-151.0,0.0001323,2]
[407640322,1772595046152,-962.30574779,0.0001323,2]
[407640323,1772595046162,-187.78006525,0.00013242,2]
[407640324,1772595046172,-253.52176029,0.00013242,2]
[407640325,1772595046182,-1336.11,0.00013263,2]
[407640326,1772595046192,-1966.62798908,0.00013263,2]
[407640327,1772595046201,-2263.99922433,0.00013291,2]
[407640328,1772595046211,-168.0,0.00013362,2]
[407640329,1772595046221,-350.0,0.00013399,2]
[407640330,1772595046232,-168.0,0.00013407,2]
[407640331,1772595046241,-3240.0,0.00013425,2]
[407640332,1772595046252,-1000.0,0.00013485,2]
[407640333,1772595046263,-166.66,0.00013523,2]
[407640334,1772595046273,-1336.11,0.00013537,2]
[407640335,1772595046283,-168.0,0.00013539,2]
[407640336,1772595046293,-249.48874237,0.00013542,2]
[407640337,1772595046303,-155.0,0.00013547,2]
[407640338,1772595046313,-350.0,0.00013555,2]
[407640339,1772595046323,-168.0,0.00013581,2]
[407640340,1772595046333,-168.0,0.00013586,2]
[407640341,1772595046346,-456.4295445,0.000136,2]
[407640342,1772595046355,-168.0,0.00013612,2]
[407640343,1772595046365,-150.0,0.00013634,2]
[407640344,1772595046374,-702.1606452,0.00013634,2]
[407640345,1772595046384,-150.0,0.00013634,2]
[407640346,1772595046394,-1562.66941643,0.00013634,2]
[407640348,1772595046404,-500.0,0.00013698,2]
[407640349,1772595046415,-386.19326799,0.00013698,2]
[407640350,1772595046424,-500.0,0.00013698,2]
[407640351,1772595046434,-500.0,0.00013698,2]
[407640352,1772595046444,-500.0,0.00013698,2]
[407640353,1772595046453,-500.0,0.00013698,2]
[407640354,1772595046463,-500.0,0.00013698,2]
[407640355,1772595046472,-500.0,0.00013698,2]
[407640356,1772595046482,-500.0,0.00013698,2]
[407640357,1772595046492,-500.0,0.00013698,2]
[407640358,1772595046501,-454.69204283,0.00013698,2]
[407640359,1772595046513,-500.0,0.00013698,2]
[407640360,1772595046523,-500.0,0.00013698,2]
[407640361,1772595046533,-500.0,0.00013698,2]
[407640362,1772595046543,-500.0,0.00013698,2]
[407640363,1772595046552,-500.0,0.00013698,2]
[407640364,1772595046562,-500.0,0.00013698,2]
[407640365,1772595046571,-500.0,0.00013698,2]
[407640366,1772595046580,-186.17523033,0.00013698,2]
[407640367,1772595046593,-252.52436012,0.00013698,2]
[407640368,1772595046608,-61.30040955,0.00013698,2]
[407640369,1772595046617,-500.0,0.00013698,2]
[407640370,1772595046627,-440.74370174,0.00013698,2]
[407640371,1772595046637,-299.92636014,0.00013698,2]
[407640372,1772595046649,-200.07363986,0.00013698,2]
[407640373,1772595046658,-500.0,0.00013698,2]
[407640374,1772595046668,-500.0,0.00013698,2]
[407640375,1772595046678,-21.92636014,0.00013698,2]
[407640376,1772595046722,-478.07363986,0.00013698,2]
[407640377,1772595046732,-500.0,0.00013698,2]
[407640378,1772595046742,-500.0,0.00013698,2]
[407640379,1772595046751,-517.69601113,0.00013698,2]
[407640380,1772595046762,-500.0,0.00013698,2]
[407640381,1772595046772,-479.11436236,0.00013698,2]
[407640382,1772595046782,-500.0,0.00013698,2]
[407640383,1772595046792,-500.0,0.00013698,2]
[407640384,1772595046801,-500.0,0.00013698,2]
[407640385,1772595046811,-159.80083652,0.00013698,2]
[407640386,1772595046820,-500.0,0.00013698,2]
[407640387,1772595046830,-500.0,0.00013698,2]
[407640388,1772595046839,-500.0,0.00013698,2]
[407640389,1772595046849,-500.0,0.00013698,2]
[407640390,1772595046858,-500.0,0.00013698,2]
[407640391,1772595046868,-500.0,0.00013698,2]
[407640392,1772595046877,-500.0,0.00013698,2]
[407640393,1772595046887,-500.0,0.00013698,2]
[407640394,1772595046897,-500.0,0.00013698,2]
[407640395,1772595046907,-500.0,0.00013698,2]
[407640396,1772595046917,-500.0,0.00013698,2]
[407640397,1772595046926,-500.0,0.00013698,2]
[407640398,1772595046935,-273.096719,0.00013698,2]
[407640399,1772595046945,-151.0,0.00013698,2]
[407640400,1772595046954,-151.0,0.00013698,2]
[407640401,1772595046963,-151.0,0.00013698,2]
[407640402,1772595046973,-151.0,0.00013698,2]
[407640403,1772595046982,-240.7043031,0.00013698,2]
[407640404,1772595046992,-259.54193,0.00013699,2]
[407640405,1772595047001,-259.54193,0.00013699,2]
[407640406,1772595047011,-259.54193,0.00013699,2]
[407640407,1772595047021,-259.54193,0.00013699,2]
[407640408,1772595047030,-200.0,0.00013699,2]
[407640409,1772595047040,-151.0,0.00013699,2]
[407640410,1772595047050,-500.0,0.00013699,2]
[407640411,1772595047060,-493.62,0.00013699,2]
[407640412,1772595047070,-151.0,0.00013699,2]
[407640413,1772595047079,-151.0,0.00013699,2]
[407640414,1772595047089,-161.245515,0.00013699,2]
[407640415,1772595047099,-168.0,0.00013724,2]
[407640416,1772595047108,-194.72792766,0.0001379,2]
[407640417,1772595047117,-262.90206542,0.0001379,2]
[407640418,1772595047127,-186.71,0.00013793,2]
[407640419,1772595047136,-1336.11,0.00013811,2]
[407640420,1772595047146,-500.0,0.00013823,2]
[407640421,1772595047155,-500.0,0.00013823,2]
[407640422,1772595047164,-500.0,0.00013823,2]
[407640423,1772595047174,-500.0,0.00013823,2]
[407640424,1772595047184,-500.0,0.00013823,2]
[407640425,1772595047193,-500.0,0.00013823,2]
[407640426,1772595047203,-346.88889626,0.00013823,2]
[407640427,1772595047212,-500.0,0.00013823,2]
[407640428,1772595047222,-500.0,0.00013823,2]
[407640429,1772595047232,-500.0,0.00013823,2]
[407640430,1772595047242,-500.0,0.00013823,2]
[407640431,1772595047251,-500.92151192,0.00013823,2]
[407640432,1772595047262,-336.2288325,0.00013823,2]
[407640433,1772595047271,-500.0,0.00013823,2]
[407640434,1772595047280,-500.0,0.00013823,2]
[407640435,1772595047290,-500.0,0.00013823,2]
[407640436,1772595047299,-407.21698715,0.00013823,2]
[407640437,1772595047309,-500.0,0.00013823,2]
[407640438,1772595047319,-500.0,0.00013823,2]
[407640439,1772595047328,-500.0,0.00013823,2]
[407640440,1772595047341,-502.08480622,0.00013823,2]
[407640441,1772595047353,-500.0,0.00013823,2]
[407640442,1772595047362,-500.0,0.00013823,2]
[407640443,1772595047372,-500.0,0.00013823,2]
[407640444,1772595047383,-500.0,0.00013823,2]
[407640445,1772595047392,-500.0,0.00013823,2]
[407640446,1772595047401,-500.0,0.00013823,2]
[407640447,1772595047412,-500.0,0.00013823,2]
[407640448,1772595047421,-500.0,0.00013823,2]
[407640449,1772595047431,-500.0,0.00013823,2]
[407640450,1772595047440,-500.0,0.00013823,2]
[407640451,1772595047449,-500.0,0.00013823,2]
[407640452,1772595047458,-500.0,0.00013823,2]
[407640453,1772595047468,-500.0,0.00013823,2]
[407640454,1772595047477,-500.0,0.00013823,2]
[407640455,1772595047486,-500.0,0.00013823,2]
[407640456,1772595047495,-500.0,0.00013823,2]
[407640457,1772595047507,-500.0,0.00013823,2]
[407640458,1772595047517,-500.0,0.00013823,2]
[407640459,1772595047526,-500.0,0.00013823,2]
[407640460,1772595047536,-500.0,0.00013823,2]
[407640461,1772595047545,-1513.24968459,0.00013833,2]
[407640462,1772595047554,-168.0,0.00013855,2]
[407640463,1772595047563,-350.0,0.00013876,2]
[407640464,1772595047573,-166.68,0.00013891,2]
[407640465,1772595047582,-166.66,0.00013929,2]
[407640466,1772595047593,-155.0,0.0001397,2]
[407640467,1772595047603,-505.0,0.00014,2]
[407640468,1772595047613,-2263.99922433,0.00014059,2]
[407640469,1772595047622,-1336.11,0.00014085,2]
[407640470,1772595047632,-168.0,0.00014094,2]
[407640471,1772595047642,-168.0,0.00014114,2]
[407640472,1772595047652,-2589.6223535,0.00014193,2]
[407640473,1772595047662,-720.5219734,0.00014193,2]
[407640474,1772595047671,-602.45,0.00014258,2]
[407640475,1772595047682,-166.66,0.00014335,2]
[407640476,1772595047692,-201.93286099,0.00014338,2]
[407640477,1772595047702,-272.62944185,0.00014338,2]
[407640478,1772595047712,-1336.11,0.00014359,2]
[407640479,1772595047722,-259.54193,0.00014371,2]
[407640480,1772595047731,-259.54193,0.00014371,2]
[407640481,1772595047741,-259.54193,0.00014371,2]
[407640482,1772595047751,-259.54193,0.00014371,2]
[407640483,1772595047766,-151.0,0.00014371,2]
[407640484,1772595047776,-151.0,0.00014371,2]
[407640485,1772595047788,-151.0,0.00014371,2]
[407640486,1772595047800,-151.0,0.00014371,2]
[407640487,1772595047809,-151.0,0.00014371,2]
[407640488,1772595047819,-1000.0,0.00014371,2]
[407640489,1772595047828,-1000.0,0.00014371,2]
[407640490,1772595047839,-1000.0,0.00014371,2]
[407640491,1772595047849,-1000.0,0.00014371,2]
[407640492,1772595047858,-1000.0,0.00014371,2]
[407640493,1772595047868,-1000.0,0.00014371,2]
[407640494,1772595047878,-1000.0,0.00014371,2]
[407640495,1772595047887,-1000.0,0.00014371,2]
[407640496,1772595047897,-1000.0,0.00014371,2]
[407640497,1772595047907,-1000.0,0.00014371,2]
[407640498,1772595047917,-1000.0,0.00014371,2]
[407640499,1772595047926,-1000.0,0.00014371,2]
[407640500,1772595047936,-1000.0,0.00014371,2]
[407640501,1772595047946,-1000.0,0.00014371,2]
[407640502,1772595047957,-1000.0,0.00014371,2]
[407640503,1772595047967,-1000.0,0.00014371,2]
[407640504,1772595047977,-536.3672286,0.00014371,2]
[407640505,1772595047987,-1000.0,0.00014371,2]
[407640506,1772595047997,-1000.0,0.00014371,2]
[407640507,1772595048010,-1000.0,0.00014371,2]
[407640508,1772595048019,-1000.0,0.00014371,2]
[407640509,1772595048193,-1000.0,0.00014371,2]
[407640510,1772595048203,-1000.0,0.00014371,2]
[407640511,1772595048212,-1000.0,0.00014371,2]
[407640512,1772595048222,-1000.0,0.00014371,2]
[407640513,1772595048231,-1000.0,0.00014371,2]
[407640514,1772595048241,-1000.0,0.00014371,2]
[407640515,1772595048250,-1000.0,0.00014371,2]
[407640516,1772595048262,-1000.0,0.00014371,2]
[407640517,1772595048271,-406.94272679,0.00014371,2]
[407640518,1772595048281,-1000.0,0.00014371,2]
[407640519,1772595048291,-1000.0,0.00014371,2]
[407640520,1772595048300,-1000.0,0.00014371,2]
[407640521,1772595048309,-1000.0,0.00014371,2]
[407640522,1772595048319,-1000.0,0.00014371,2]
[407640523,1772595048328,-1000.0,0.00014371,2]
[407640524,1772595048338,-493.62,0.00014384,2]
[407640525,1772595048352,-249.48874237,0.00014414,2]
[407640526,1772595048362,-186.71,0.0001442,2]
[407640527,1772595048371,-1513.24968459,0.00014511,2]
[407640528,1772595048381,-577.8228504,0.00014549,2]
[407640529,1772595048390,-160.7701833,0.00014549,2]
[407640530,1772595048400,-182.53,0.00014565,2]
[407640531,1772595048409,-1336.11,0.00014633,2]
[407640532,1772595048420,-1600.0,0.000147,2]
[407640533,1772595048429,-2263.99922433,0.00014827,2]
[407640534,1772595048439,-196.29458997,0.0001485,2]
[407640535,1772595048448,-747.8093786,0.00014885,2]
[407640536,1772595048458,-599.60298507,0.00014885,2]
[407640537,1772595048468,-209.40437684,0.00014886,2]
[407640538,1772595048477,-282.71673119,0.00014886,2]
[407640539,1772595048488,-1336.1640577,0.00014907,2]
[407640540,1772595048497,-500.44959064,0.00014919,2]
[407640541,1772595048508,-1500.0,0.00014919,2]
[407640542,1772595048517,-1500.0,0.00014919,2]
[407640543,1772595048527,-1500.0,0.00014919,2]
[407640544,1772595048537,-1500.0,0.00014919,2]
[407640545,1772595048547,-1500.0,0.00014919,2]
[407640546,1772595048556,-1500.0,0.00014919,2]
[407640547,1772595048566,-1500.0,0.00014919,2]
[407640548,1772595048575,-1500.0,0.00014919,2]
[407640549,1772595048584,-1500.0,0.00014919,2]
[407640550,1772595048594,-1405.68212584,0.00014919,2]
[407640551,1772595048603,-1500.0,0.00014919,2]
[407640552,1772595048614,-222.62779718,0.00014919,2]
[407640553,1772595048623,-1500.0,0.00014919,2]